lending/lending_fUSD_20241229
["ID","MTS","AMOUNT","RATE_DAILY","PERIOD"]
[346980214,1735447834494,-500.0,0.00012983,2]
[346980215,1735447834503,-527.28,0.00012983,2]
[346980216,1735447834513,-500.0,0.00012983,2]
[346980217,1735447834522,-500.0,0.00012983,2]
[346980218,1735447834531,-500.0,0.00012983,2]
[346980219,1735447834540,-500.0,0.00012983,2]
[346980220,1735447834549,-500.0,0.00012983,2]
[346980221,1735447834558,-500.0,0.00012983,2]
[346980222,1735447834567,-500.0,0.00012983,2]
[346980223,1735447834577,-500.0,0.00012983,2]
[346980224,1735447834586,-500.0,0.00012983,2]
[346980225,1735447834595,-518.92,0.00012983,2]
[346980226,1735447834604,-500.0,0.00012983,2]
[346980227,1735447834614,-500.0,0.00012983,2]
[346980228,1735447834624,-500.0,0.00012983,2]
[346980229,1735447834634,-767.99,0.00012983,2]
[346980230,1735447834643,-497.12702831,0.00012983,2]
[346980231,1735447834653,-500.0,0.00012983,2]
[346980232,1735447834662,-500.0,0.00012983,2]
[346980233,1735447834673,-500.0,0.00012983,2]
[346980234,1735447834684,-422.92276049,0.00012983,2]
[346980235,1735447834695,-500.0,0.00012983,2]
[346980236,1735447834705,-500.0,0.00012983,2]
[346980237,1735447834715,-500.0,0.00012983,2]
[346980238,1735447834726,-500.0,0.00012983,2]
[346980239,1735447834736,-695.97,0.00012983,2]
[346980240,1735447834745,-500.0,0.00012983,2]
[346980241,1735447834754,-500.0,0.00012983,2]
[346980242,1735447834763,-500.0,0.00012983,2]
[346980243,1735447834772,-313.10521081,0.00012983,2]
[346980244,1735447834781,-636.88358017,0.00012983,2]
[346980245,1735447834790,-500.0,0.00012983,2]
[346980246,1735447834799,-500.0,0.00012983,2]
[346980247,1735447834808,-500.0,0.00012983,2]
[346980248,1735447834817,-500.0,0.00012983,2]
[346980249,1735447834826,-500.0,0.00012983,2]
[346980250,1735447834836,-500.0,0.00012983,2]
[346980251,1735447834845,-500.0,0.00012983,2]
[346980252,1735447834854,-749.41,0.00012983,2]
[346980253,1735447834863,-500.0,0.00012983,2]
[346980254,1735447834872,-500.0,0.00012983,2]
[346980255,1735447834881,-500.0,0.00012983,2]
[346980256,1735447834890,-500.0,0.00012983,2]
[346980257,1735447834899,-500.0,0.00012983,2]
[346980258,1735447834908,-500.0,0.00012983,2]
[346980259,1735447834917,-500.0,0.00012983,2]
[346980260,1735447834926,-500.0,0.00012983,2]
[346980261,1735447834936,-500.0,0.00012983,2]
[346980262,1735447834945,-500.0,0.00012983,2]
[346980263,1735447834954,-586.24799793,0.00012983,2]
[346980264,1735447834963,-500.0,0.00012983,2]
[346980265,1735447834973,-344.62496335,0.00012983,2]
[346980266,1735447834982,-500.0,0.00012983,2]
[346980267,1735447834991,-500.0,0.00012983,2]
[346980268,1735447835001,-500.0,0.00012983,2]
[346980269,1735447835011,-500.0,0.00012983,2]
[346980270,1735447835022,-500.0,0.00012983,2]
[346980271,1735447835031,-500.0,0.00012983,2]
[346980272,1735447835041,-500.0,0.00012983,2]
[346980273,1735447835052,-500.0,0.00012983,2]
[346980274,1735447835062,-500.0,0.00012983,2]
[346980275,1735447835071,-500.0,0.00012983,2]
[346980276,1735447835081,-500.0,0.00012983,2]
[346980277,1735447835090,-365.24808918,0.00012983,2]
[346980278,1735447835099,-694.63,0.00012983,2]
[346980279,1735447835108,-500.0,0.00012983,2]
[346980280,1735447835118,-500.0,0.00012983,2]
[346980281,1735447835127,-434.50458582,0.00012983,2]
[346980282,1735447835136,-500.0,0.00012983,2]
[346980283,1735447835145,-500.0,0.00012983,2]
[346980284,1735447835154,-500.0,0.00012983,2]
[346980285,1735447835163,-387.81772737,0.00012983,2]
[346980286,1735447835173,-500.0,0.00012983,2]
[346980287,1735447835182,-500.87124191,0.00012983,2]
[346980288,1735447835192,-500.0,0.00012983,2]
[346980289,1735447835202,-509.62668335,0.00012983,2]
[346980290,1735447835214,-500.0,0.00012983,2]
[346980291,1735447835224,-500.0,0.00012983,2]
[346980292,1735447835235,-511.6797916,0.00012983,2]
[346980293,1735447835244,-500.0,0.00012983,2]
[346980294,1735447835253,-575.35,0.00012983,2]
[346980295,1735447835263,-500.0,0.00012983,2]
[346980296,1735447835272,-760.88,0.00012983,2]
[346980297,1735447835281,-502.99186788,0.00012983,2]
[346980298,1735447835294,-500.0,0.00012983,2]
[346980299,1735447835304,-500.0,0.00012983,2]
[346980300,1735447835468,-500.0,0.00012983,2]
[346980301,1735447835478,-500.0,0.00012983,2]
[346980302,1735447835488,-500.0,0.00012983,2]
[346980303,1735447835498,-500.0,0.00012983,2]
[346980304,1735447835507,-500.0,0.00012983,2]
[346980305,1735447835516,-500.0,0.00012983,2]
[346980306,1735447835525,-500.0,0.00012983,2]
[346980307,1735447835534,-500.0,0.00012983,2]
[346980308,1735447835545,-500.0,0.00012983,2]
[346980309,1735447835555,-500.0,0.00012983,2]
[346980310,1735447835565,-500.0,0.00012983,2]
[346980311,1735447835576,-500.0,0.00012983,2]
[346980312,1735447835585,-500.0,0.00012983,2]
[346980313,1735447835594,-501.97467101,0.00012983,2]
[346980314,1735447835603,-604.79,0.00012983,2]
[346980315,1735447835612,-733.15,0.00012983,2]
[346980316,1735447835622,-500.0,0.00012983,2]
[346980317,1735447835631,-501.83369981,0.00012983,2]
[346980318,1735447835639,-513.47999018,0.00012983,2]
[346980319,1735447835648,-500.0,0.00012983,2]
[346980320,1735447835657,-500.0,0.00012983,2]
[346980321,1735447835666,-500.0,0.00012983,2]
[346980322,1735447835674,-500.0,0.00012983,2]
[346980323,1735447835683,-500.0,0.00012983,2]
[346980324,1735447835692,-500.0,0.00012983,2]
[346980325,1735447835702,-607.97335299,0.00012983,2]
[346980326,1735447835711,-500.0,0.00012983,2]
[346980327,1735447835720,-500.0,0.00012983,2]
[346980328,1735447835729,-500.0,0.00012983,2]
[346980329,1735447835739,-500.0,0.00012983,2]
[346980330,1735447835748,-506.69136634,0.00012983,2]
[346980331,1735447835758,-1164.14,0.00012983,2]
[346980332,1735447835767,-500.0,0.00012983,2]
[346980333,1735447835776,-500.0,0.00012983,2]
[346980334,1735447835785,-509.34327262,0.00012983,2]
[346980335,1735447835794,-500.0,0.00012983,2]
[346980336,1735447835803,-500.0,0.00012983,2]
[346980337,1735447835812,-500.0,0.00012983,2]
[346980338,1735447835821,-500.0,0.00012983,2]
[346980339,1735447835831,-500.0,0.00012983,2]
[346980340,1735447835840,-500.0,0.00012983,2]
[346980341,1735447835850,-665.29,0.00012983,2]
[346980342,1735447835859,-500.0,0.00012983,2]
[346980343,1735447835868,-500.0,0.00012983,2]
[346980344,1735447835877,-501.17918297,0.00012983,2]
[346980345,1735447835886,-2474.72,0.00012983,2]
[346980346,1735447835895,-500.0,0.00012983,2]
[346980347,1735447835905,-500.0,0.00012983,2]
[346980348,1735447835914,-506.41862426,0.00012983,2]
[346980349,1735447835923,-500.0,0.00012983,2]
[346980350,1735447835933,-500.0,0.00012983,2]
[346980351,1735447835942,-500.0,0.00012983,2]
[346980352,1735447835951,-802.42,0.00012983,2]
[346980353,1735447835960,-399.93858384,0.00012983,2]
[346980354,1735447835969,-500.0,0.00012983,2]
[346980355,1735447835978,-500.0,0.00012983,2]
[346980356,1735447835987,-500.0,0.00012983,2]
[346980357,1735447835997,-500.0,0.00012983,2]
[346980358,1735447836006,-500.0,0.00012983,2]
[346980359,1735447836015,-500.0,0.00012983,2]
[346980360,1735447836024,-500.0,0.00012983,2]
[346980361,1735447836033,-500.0,0.00012983,2]
[346980362,1735447836043,-502.4611189,0.00012983,2]
[346980363,1735447836052,-533.39,0.00012983,2]
[346980364,1735447836061,-500.0,0.00012983,2]
[346980365,1735447836070,-500.97521223,0.00012983,2]
[346980366,1735447836079,-282.29486518,0.00012983,2]
[346980367,1735447836089,-957.49,0.00012983,2]
[346980368,1735447836098,-502.42590619,0.00012983,2]
[346980369,1735447836107,-500.0,0.00012983,2]
[346980370,1735447836117,-3277.69,0.00012983,2]
[346980371,1735447836126,-500.0,0.00012983,2]
[346980372,1735447836135,-500.0,0.00012983,2]
[346980373,1735447836145,-507.62543701,0.00012983,2]
[346980374,1735447836154,-500.0,0.00012983,2]
[346980375,1735447836163,-500.0,0.00012983,2]
[346980376,1735447836172,-500.0,0.00012983,2]
[346980377,1735447836181,-517.17,0.00012983,2]
[346980378,1735447836190,-2686.95,0.00012983,2]
[346980379,1735447836199,-500.0,0.00012983,2]
[346980380,1735447836209,-500.0,0.00012983,2]
[346980381,1735447836220,-500.0,0.00012983,2]
[346980382,1735447836229,-7368.39,0.00012983,2]
[346980383,1735447836238,-510.98326638,0.00012983,2]
[346980384,1735447836248,-500.0,0.00012983,2]
[346980385,1735447836260,-501.72889271,0.00012983,2]
[346980386,1735447836269,-502.66332416,0.00012983,2]
[346980387,1735447836278,-500.0,0.00012983,2]
[346980388,1735447836290,-500.0,0.00012983,2]
[346980389,1735447836300,-500.0,0.00012983,2]
[346980390,1735447836309,-500.0,0.00012983,2]
[346980391,1735447836319,-1434.99,0.00012983,2]
[346980392,1735447836329,-500.0,0.00012983,2]
[346980393,1735447836338,-500.0,0.00012983,2]
[346980394,1735447836348,-500.0,0.00012983,2]
[346980395,1735447836357,-505.15043686,0.00012983,2]
[346980396,1735447836367,-500.0,0.00012983,2]
[346980397,1735447836377,-500.0,0.00012983,2]
[346980398,1735447836389,-500.0,0.00012983,2]
[346980399,1735447836399,-500.0,0.00012983,2]
[346980400,1735447836410,-502.08915203,0.00012983,2]
[346980401,1735447836419,-500.0,0.00012983,2]
[346980402,1735447836428,-2589.05,0.00012983,2]
[346980403,1735447836437,-500.0,0.00012983,2]
[346980404,1735447836447,-500.0,0.00012983,2]
[346980405,1735447836457,-500.0,0.00012983,2]
[346980406,1735447836467,-500.0,0.00012983,2]
[346980407,1735447836477,-500.0,0.00012983,2]
[346980408,1735447836487,-500.0,0.00012983,2]
[346980409,1735447836497,-501.72746246,0.00012983,2]
[346980410,1735447836507,-1821.85,0.00012983,2]
[346980411,1735447836516,-500.0,0.00012983,2]
[346980412,1735447836526,-500.0,0.00012983,2]
[346980413,1735447836538,-6651.38,0.00012983,2]
[346980414,1735447836546,-500.0,0.00012983,2]
[346980415,1735447836555,-640.51,0.00012983,2]
[346980416,1735447836565,-500.0,0.00012983,2]
[346980417,1735447836575,-500.0,0.00012983,2]
[346980418,1735447836583,-503.25687984,0.00012983,2]
[346980419,1735447836593,-505.28389198,0.00012983,2]
[346980420,1735447836603,-500.0,0.00012983,2]
[346980421,1735447836613,-500.0,0.00012983,2]
[346980422,1735447836622,-500.0,0.00012983,2]
[346980423,1735447836633,-500.0,0.00012983,2]
[346980424,1735447836642,-500.0,0.00012983,2]
[346980425,1735447836652,-498.78138889,0.00012983,2]
[346980426,1735447836662,-500.0,0.00012983,2]
[346980427,1735447836673,-500.0,0.00012983,2]
[346980428,1735447836682,-544.59,0.00012983,2]
[346980429,1735447836691,-538.83093729,0.00012983,2]
[346980430,1735447836700,-861.24,0.00012983,2]
[346980431,1735447836708,-7.22139967,0.00012983,2]
[346980432,1735447836772,-493.63304776,0.00012983,2]
[346980433,1735447836781,-318.65695224,0.00012983,2]
[346980434,1735447836793,-181.34304776,0.00012983,2]
[346980435,1735447836803,-500.0,0.00012983,2]
[346980436,1735447836812,-515.74167694,0.00012983,2]
[346980437,1735447836821,-368.43127845,0.00012983,2]
[346980438,1735447836842,-131.56872155,0.00012983,2]
[346980439,1735447836851,-500.0,0.00012983,2]
[346980440,1735447836861,-500.0,0.00012983,2]
[346980441,1735447836872,-500.0,0.00012983,2]
[346980442,1735447836883,-500.0,0.00012983,2]
[346980443,1735447836892,-500.0,0.00012983,2]
[346980444,1735447836901,-500.0,0.00012983,2]
[346980445,1735447836911,-502.54359023,0.00012983,2]
[346980446,1735447836922,-512.92486826,0.00012983,2]
[346980447,1735447836932,-506.12188583,0.00012983,2]
[346980448,1735447836942,-504.08361369,0.00012983,2]
[346980449,1735447836952,-500.0,0.00012983,2]
[346980450,1735447836963,-1194.66,0.00012983,2]
[346980451,1735447836972,-500.0,0.00012983,2]
[346980452,1735447836983,-501.97621998,0.00012983,2]
[346980453,1735447836992,-500.0,0.00012983,2]
[346980454,1735447837002,-500.0,0.00012983,2]
[346980455,1735447837011,-500.0,0.00012983,2]
[346980456,1735447837020,-500.0,0.00012983,2]
[346980457,1735447837030,-501.81046839,0.00012983,2]
[346980458,1735447837039,-500.0,0.00012983,2]
[346980459,1735447837048,-500.0,0.00012983,2]
[346980460,1735447837057,-500.0,0.00012983,2]
[346980461,1735447837067,-500.0,0.00012983,2]
[346980462,1735447837076,-500.0,0.00012983,2]
[346980463,1735447837085,-500.0,0.00012983,2]
[346980464,1735447837095,-500.0,0.00012983,2]
[346980465,1735447837104,-500.0,0.00012983,2]
[346980466,1735447837113,-500.0,0.00012983,2]
[346980467,1735447837122,-1190.35,0.00012983,2]
[346980468,1735447837132,-411.31374908,0.00012983,2]
[346980469,1735447837141,-501.32644516,0.00012983,2]
[346980470,1735447837150,-500.0,0.00012983,2]
[346980471,1735447837159,-500.0,0.00012983,2]
[346980472,1735447837168,-500.0,0.00012983,2]
[346980473,1735447837178,-500.0,0.00012983,2]
[346980474,1735447837187,-500.0,0.00012983,2]
[346980475,1735447837196,-500.0,0.00012983,2]
[346980476,1735447837205,-500.0,0.00012983,2]
[346980477,1735447837217,-500.0,0.00012983,2]
[346980478,1735447837227,-500.0,0.00012983,2]
[346980479,1735447837237,-500.0,0.00012983,2]
[346980480,1735447837246,-1936.25,0.00012983,2]
[346980481,1735447837256,-500.0,0.00012983,2]
[346980482,1735447837265,-500.0,0.00012983,2]
[346980483,1735447837274,-500.0,0.00012983,2]
[346980484,1735447837284,-500.0,0.00012983,2]
[346980485,1735447837293,-500.0,0.00012983,2]
[346980486,1735447837304,-500.0,0.00012983,2]
[346980487,1735447837314,-500.0,0.00012983,2]
[346980488,1735447837323,-500.0,0.00012983,2]
[346980489,1735447837332,-500.0,0.00012983,2]
[346980490,1735447837342,-500.0,0.00012983,2]
[346980491,1735447837351,-500.0,0.00012983,2]
[346980492,1735447837360,-500.0,0.00012983,2]
[346980493,1735447837370,-500.0,0.00012983,2]
[346980494,1735447837379,-4776.2,0.00012983,2]
[346980495,1735447837388,-500.0,0.00012983,2]
[346980496,1735447837397,-429.05921885,0.00012983,2]
[346980497,1735447837406,-500.0,0.00012983,2]
[346980498,1735447837417,-500.0,0.00012983,2]
[346980499,1735447837426,-500.0,0.00012983,2]
[346980500,1735447837435,-500.0,0.00012983,2]
[346980501,1735447837445,-500.0,0.00012983,2]
[346980502,1735447837454,-500.0,0.00012983,2]
[346980503,1735447837465,-500.0,0.00012983,2]
[346980504,1735447837474,-500.0,0.00012983,2]
[346980505,1735447837484,-828.51,0.00012983,2]
[346980506,1735447837494,-500.0,0.00012983,2]
[346980507,1735447837504,-500.0,0.00012983,2]
[346980508,1735447837513,-500.5474918,0.00012983,2]
[346980509,1735447837524,-502.4043539,0.00012983,2]
[346980510,1735447837534,-500.0,0.00012983,2]
[346980511,1735447837544,-500.0,0.00012983,2]
[346980512,1735447837554,-500.0,0.00012983,2]
[346980513,1735447837563,-500.70337841,0.00012983,2]
[346980514,1735447837573,-500.0,0.00012983,2]
[346980515,1735447837582,-500.0,0.00012983,2]
[346980516,1735447837591,-500.0,0.00012983,2]
[346980517,1735447837601,-500.77075509,0.00012983,2]
[346980518,1735447837611,-500.0,0.00012983,2]
[346980519,1735447837620,-500.0,0.00012983,2]
[346980520,1735447837629,-500.0,0.00012983,2]
[346980521,1735447837638,-500.0,0.00012983,2]
[346980522,1735447837648,-500.0,0.00012983,2]
[346980523,1735447837657,-500.0,0.00012983,2]
[346980524,1735447837666,-500.0,0.00012983,2]
[346980525,1735447837675,-894.87,0.00012983,2]
[346980526,1735447837685,-637.84868538,0.00012983,2]
[346980527,1735447837694,-507.24993611,0.00012983,2]
[346980528,1735447837703,-500.0,0.00012983,2]
[346980529,1735447837712,-500.0,0.00012983,2]
[346980530,1735447837721,-500.0,0.00012983,2]
[346980531,1735447837731,-500.0,0.00012983,2]
[346980532,1735447837740,-500.0,0.00012983,2]
[346980533,1735447837749,-500.0,0.00012983,2]
[346980534,1735447837758,-500.0,0.00012983,2]
[346980535,1735447837767,-500.0,0.00012983,2]
[346980536,1735447837776,-500.0,0.00012983,2]
[346980537,1735447837785,-502.24271914,0.00012983,2]
[346980538,1735447837794,-500.0,0.00012983,2]
[346980539,1735447837804,-500.0,0.00012983,2]
[346980540,1735447837813,-500.0,0.00012983,2]
[346980541,1735447837822,-2113.84,0.00012983,2]
[346980542,1735447837834,-500.0,0.00012983,2]
[346980543,1735447837845,-500.0,0.00012983,2]
[346980544,1735447837855,-500.0,0.00012983,2]
[346980545,1735447837864,-500.0,0.00012983,2]
[346980546,1735447837874,-523.86364282,0.00012983,2]
[346980547,1735447837884,-500.0,0.00012983,2]
[346980548,1735447837894,-500.0,0.00012983,2]
[346980549,1735447837903,-500.0,0.00012983,2]
[346980550,1735447837912,-500.0,0.00012983,2]
[346980551,1735447837922,-500.0,0.00012983,2]
[346980552,1735447837931,-500.0,0.00012983,2]
[346980553,1735447837941,-500.0,0.00012983,2]
[346980554,1735447837951,-500.0,0.00012983,2]
[346980555,1735447837961,-500.0,0.00012983,2]
[346980556,1735447837971,-500.0,0.00012983,2]
[346980557,1735447837980,-576.42683878,0.00012983,2]
[346980558,1735447837989,-500.0,0.00012983,2]
[346980559,1735447838000,-500.0,0.00012983,2]
[346980560,1735447838009,-500.0,0.00012983,2]
[346980561,1735447838019,-1120.34,0.00012983,2]
[346980562,1735447838028,-500.0,0.00012983,2]
[346980563,1735447838038,-500.0,0.00012983,2]
[346980564,1735447838049,-500.0,0.00012983,2]
[346980565,1735447838059,-500.0,0.00012983,2]
[346980566,1735447838069,-199.4766692,0.00012983,2]
[346980567,1735447838078,-500.0,0.00012983,2]
[346980568,1735447838087,-500.0,0.00012983,2]
[346980570,1735447838097,-585.45,0.00012983,2]
[346980571,1735447838107,-500.0,0.00012983,2]
[346980573,1735447838118,-500.0,0.00012983,2]
[346980574,1735447838129,-506.15324921,0.00012983,2]
[346980575,1735447838138,-500.0,0.00012983,2]
[346980576,1735447838147,-500.0,0.00012983,2]
[346980577,1735447838156,-500.0,0.00012983,2]
[346980578,1735447838165,-500.0,0.00012983,2]
[346980579,1735447838174,-500.0,0.00012983,2]
[346980580,1735447838183,-500.0,0.00012983,2]
[346980581,1735447838193,-500.0,0.00012983,2]
[346980582,1735447838202,-500.0,0.00012983,2]
[346980583,1735447838212,-500.0,0.00012983,2]
[346980584,1735447838224,-500.0,0.00012983,2]
[346980585,1735447838233,-499.63767298,0.00012983,2]
[346980586,1735447838243,-500.0,0.00012983,2]
[346980587,1735447838252,-345.8186302,0.00012983,2]
[346980693,1735447839554,-500.0,0.00012982,2]
[346980695,1735447839563,-154.1813698,0.00012983,2]
[346980697,1735447839572,-500.0,0.00012983,2]
[346980699,1735447839582,-500.0,0.00012983,2]
[346980701,1735447839591,-500.0,0.00012983,2]
[346980703,1735447839600,-500.0,0.00012983,2]
[346980705,1735447839609,-500.0,0.00012983,2]
[346980707,1735447839618,-500.0,0.00012983,2]
[346980709,1735447839627,-500.0,0.00012983,2]
[346980711,1735447839636,-500.0,0.00012983,2]
[346980713,1735447839645,-500.0,0.00012983,2]
[346980715,1735447839654,-500.0,0.00012983,2]
[346980717,1735447839663,-500.0,0.00012983,2]
[346980719,1735447839673,-500.0,0.00012983,2]
[346980721,1735447839682,-500.0,0.00012984,2]
[346980723,1735447839691,-500.0,0.00012984,2]
[346980725,1735447839700,-1243.23,0.00012984,2]
[346980727,1735447839709,-500.0,0.00012984,2]
[346980729,1735447839718,-157.64191834,0.00012984,2]
[346980731,1735447839727,-500.0,0.00012984,2]
[346980733,1735447839736,-500.0,0.00012984,2]
[346980734,1735447839745,-434.69320295,0.00012984,2]
[346980737,1735447839754,-363.52837095,0.00012984,2]
[346980738,1735447839763,-504.74128985,0.00012984,2]
[346980741,1735447839773,-1361.22,0.00012984,2]
[346980742,1735447839781,-506.66716016,0.00012984,2]
[346980744,1735447839790,-504.54137583,0.00012984,2]
[346980746,1735447839799,-151.101771,0.00012984,2]
[346980748,1735447839808,-157.266517,0.00012984,2]
[346980750,1735447839817,-500.0,0.00012984,2]
[346980752,1735447839825,-2185.28,0.00012984,2]
[346980754,1735447839835,-500.0,0.00012984,2]
[346980756,1735447839844,-500.0,0.00012984,2]
[346980758,1735447839854,-500.0,0.00012984,2]
[346980760,1735447839863,-500.0,0.00012984,2]
[346980762,1735447839872,-500.0,0.00012984,2]
[346980764,1735447839882,-156.473707,0.00012984,2]
[346980766,1735447839891,-159.336587,0.00012984,2]
[346980768,1735447839901,-155.277904,0.00012984,2]
[346980770,1735447839910,-500.0,0.00012984,2]
[346980772,1735447839919,-500.96304273,0.00012984,2]
[346980774,1735447839928,-169.307425,0.00012984,2]
[346980776,1735447839938,-500.0,0.00012984,2]
[346980778,1735447839947,-1159.22,0.00012984,2]
[346980780,1735447839955,-500.0,0.00012984,2]
[346980782,1735447839965,-426.46025258,0.00012984,2]
[346980784,1735447839974,-500.0,0.00012984,2]
[346980786,1735447839983,-160.10209441,0.00012984,2]
[346980788,1735447839992,-500.0,0.00012984,2]
[346980790,1735447840001,-262.42493483,0.00012984,2]
[346980792,1735447840010,-500.0,0.00012984,2]
[346980794,1735447840020,-501.99754309,0.00012984,2]
[346980796,1735447840029,-1072.82,0.00012984,2]
[346980798,1735447840038,-500.0,0.00012984,2]
[346980800,1735447840047,-500.0,0.00012984,2]
[346980802,1735447840057,-500.0,0.00012984,2]
[346980804,1735447840066,-500.0,0.00012984,2]
[346980806,1735447840075,-500.0,0.00012984,2]
[346980808,1735447840085,-502.7619707,0.00012984,2]
[346980810,1735447840094,-500.0,0.00012984,2]
[346980812,1735447840103,-502.63372315,0.00012984,2]
[346980814,1735447840112,-8458.4,0.00012984,2]
[346980816,1735447840122,-500.0,0.00012984,2]
[346980818,1735447840131,-500.0,0.00012984,2]
[346980820,1735447840140,-501.05914514,0.00012984,2]
[346980822,1735447840149,-302.36502072,0.00012984,2]
[346980824,1735447840159,-502.30505927,0.00012984,2]
[346980826,1735447840168,-500.0,0.00012984,2]
[346980828,1735447840178,-367.7188164,0.00012984,2]
[346980830,1735447840187,-500.0,0.00012984,2]
[346980832,1735447840196,-1050.15,0.00012984,2]
[346980834,1735447840206,-500.0,0.00012984,2]
[346980836,1735447840217,-500.43891601,0.00012984,2]
[346980838,1735447840226,-504.11433253,0.00012984,2]
[346980840,1735447840235,-1456.68,0.00012984,2]
[346980842,1735447840244,-506.65384322,0.00012984,2]
[346980844,1735447840255,-508.88759628,0.00012984,2]
[346980846,1735447840264,-500.0,0.00012984,2]
[346980848,1735447840273,-866.29,0.00012984,2]
[346980850,1735447840282,-500.0,0.00012984,2]
[346980852,1735447840292,-500.0,0.00012984,2]
[346980854,1735447840302,-500.0,0.00012984,2]
[346980856,1735447840311,-500.0,0.00012984,2]
[346980858,1735447840320,-500.0,0.00012984,2]
[346980860,1735447840329,-500.0,0.00012984,2]
[346980862,1735447840338,-500.0,0.00012984,2]
[346980864,1735447840347,-500.0,0.00012984,2]
[346980866,1735447840357,-502.7670902,0.00012984,2]
[346980868,1735447840366,-500.0,0.00012984,2]
[346980870,1735447840375,-500.0,0.00012984,2]
[346980872,1735447840384,-500.0,0.00012984,2]
[346980874,1735447840393,-500.0,0.00012984,2]
[346980876,1735447840402,-500.0,0.00012984,2]
[346980878,1735447840411,-500.0,0.00012984,2]
[346980880,1735447840421,-545.90125483,0.00012984,2]
[346980882,1735447840430,-500.69065524,0.00012984,2]
[346980884,1735447840439,-500.0,0.00012984,2]
[346980886,1735447840449,-500.0,0.00012984,2]
[346980888,1735447840458,-500.0,0.00012984,2]
[346980889,1735447840468,-500.0,0.00012984,2]
[346980891,1735447840477,-500.0,0.00012984,2]
[346980893,1735447840486,-500.0,0.00012984,2]
[346980896,1735447840496,-500.0,0.00012984,2]
[346980897,1735447840506,-500.0,0.00012984,2]
[346980899,1735447840517,-500.0,0.00012984,2]
[346980902,1735447840526,-509.77764834,0.00012984,2]
[346980904,1735447840535,-500.0,0.00012984,2]
[346980906,1735447840544,-500.0,0.00012984,2]
[346980908,1735447840553,-503.07224653,0.00012984,2]
[346980910,1735447840562,-500.0,0.00012984,2]
[346980911,1735447840571,-500.0,0.00012984,2]
[346980914,1735447840581,-500.0,0.00012984,2]
[346980916,1735447840590,-500.0,0.00012984,2]
[346980918,1735447840599,-524.84979958,0.00012984,2]
[346980919,1735447840608,-500.0,0.00012984,2]
[346980921,1735447840618,-534.00666985,0.00012984,2]
[346980923,1735447840627,-4937.21,0.00012984,2]
[346980925,1735447840637,-500.0,0.00012984,2]
[346980927,1735447840646,-500.0,0.00012984,2]
[346980929,1735447840655,-500.0,0.00012984,2]
[346980931,1735447840665,-502.30220783,0.00012984,2]
[346980933,1735447840675,-500.0,0.00012984,2]
[346980935,1735447840684,-500.0,0.00012984,2]
[346980937,1735447840695,-500.0,0.00012984,2]
[346980939,1735447840704,-501.20000744,0.00012984,2]
[346980941,1735447840713,-500.0,0.00012984,2]
[346980943,1735447840722,-500.0,0.00012984,2]
[346980945,1735447840731,-500.0,0.00012984,2]